Cogmind - Beta 15 @@@ ROGUE MODE // 2025.08.26 @ 20:56:43 Player: the Result: Destroyed by Striker with Plasma Lance Performance ------------- Evolutions (5) 2500 Regions Visited (19) 3800 Robots Destroyed (168) 840 Value Destroyed (5846) 5846 Prototype IDs (84) 1680 Alien Tech Used (0) 0 Bonus (3997) 3997 TOTAL SCORE: 18663 Bonus ------- High Alert Combat Kills 536 Follower Combat Kills 1246 Aligned with FarCom 300 Met Data Miner 300 Met Imprinter 300 Was Imprinted 300 Met Warlord at Base 500 MAIN.C Attacked Warlord 500 Warlord Defense Kills 580 Friendly Fire -565 Cogmind --------- Core Integrity 0/1000 Matter 300/300 Energy 1238/1300 System Corruption 0% Temperature Cool (0) Movement Walking (176) Ox1 Location -5/Warlord Parts ------- > --- POWER (2) -------- Vortex Chain Reactor > --- PROPULSION (4) --- Myomer Leg Enhanced Biometal Leg Enhanced Biometal Leg Backup Propulsion III > --- UTILITY (7) ------ Advanced Cooling System Improved Coolant Injector Huge Storage Unit Zionite Biocell Enhanced Optical Array Advanced Signal Interpreter Improved Transmission Jammer > --- WEAPON (4) ------- Vortex Shotgun > --- INVENTORY (25) --- Experimental Heat Sink Improved Coolant Injector High-capacity Storage Unit Improved Matter Compressor (300) Experimental Core Analyzer Zionite Weapon Casing Advanced Remote Shield Ghost Barrier Authchip [Propulsion] Authchip [Propulsion] Authchip [Weapon] Wardrone Bay PSU Rigger Zionite Laser-S Heavy Proton Cannon Heavy Plasma Cannon Peak State ------------ > --- POWER ------------ Vortex Chain Reactor > --- PROPULSION ------- Myomer Leg Enhanced Biometal Leg Enhanced Biometal Leg Backup Propulsion III > --- UTILITY ---------- Advanced Cooling System Improved Coolant Injector Huge Storage Unit Zionite Biocell Enhanced Optical Array Advanced Signal Interpreter Improved Transmission Jammer > --- WEAPON ----------- Vortex Shotgun Vortex Shotgun Molecular Deconstructor > --- INVENTORY -------- Experimental Heat Sink Improved Coolant Injector High-capacity Storage Unit Improved Matter Compressor Experimental Core Analyzer Zionite Weapon Casing Advanced Remote Shield Ghost Barrier Authchip [Propulsion] Authchip [Propulsion] Authchip [Weapon] Wardrone Bay PSU Rigger Zionite Laser-S Heavy Proton Cannon Heavy Plasma Cannon [Rating: 138] Favorites ----------- Power Improved Deuterium Engine Engine Improved Deuterium Engine Power Core Fusion Compressor Reactor Antimatter Reactor Propulsion Compact Wheel Treads Light Treads Leg Zionite Composite Leg I Wheel Compact Wheel Hover Unit Backup Propulsion III Utility High-capacity Storage Unit Device Improved Sensor Array Storage High-capacity Storage Unit Processor Enhanced Optical Array Protection Hardened Medium Armor Plating Weapon Plasma Cannon Energy Gun Spread Laser Energy Cannon Plasma Cannon Ballistic Gun Improved Assault Rifle Launcher Heavy Missile Launcher Special Weapon Molecular Deconstructor Slashing Weapon Longsword +1 Special Melee Weapon Improved Datajack Build | -11 -10 -10 -10 -9 -8 -7 -7 -7 -7 -6 -6 -6 -6 -6 -5 -5 -5 -5 -5 ------- Run | Yrd Mat Min Exi Min Mat Fac Low Low Zio Pro Fac Low Low Dat Pro Fac Upp Upp War Slots Evolved 10 | . . . . . 4 2 . . . . 2 . . . . 2 . . . Power 1 | . . . . . . . . . . . 1 . . . . . . . . Propulsion 2 | . . . . . . 1 . . . . 1 . . . . . . . . Utility 5 | . . . . . 3 1 . . . . . . . . . 1 . . . Weapon 2 | . . . . . 1 . . . . . . . . . . 1 . . . Parts Attached 173 | 8 11 4 1 3 22 17 1 2 2 17 11 9 2 2 6 29 7 7 12 Power 18 | 1 1 . . 1 1 . . 1 . 3 2 1 . . . 4 1 . 2 Engine 8 | 1 1 . . 1 1 . . . . 2 . . . . . 2 . . . Core 6 | . . . . . . . . 1 . 1 1 . . . . 1 1 . 1 Reactor 4 | . . . . . . . . . . . 1 1 . . . 1 . . 1 Propulsion 30 | 3 2 3 . 1 1 4 . . . 1 3 . . . 2 7 . . 3 Treads 2 | . 2 . . . . . . . . . . . . . . . . . . Leg 6 | . . . . . . . . . . . . . . . 1 2 . . 3 Wheel 22 | 3 . 3 . 1 1 4 . . . 1 3 . . . 1 5 . . . Hover . | . . . . . . . . . . . . . . . . . . . . Flight . | . . . . . . . . . . . . . . . . . . . . Utility 72 | 2 3 1 . 1 11 8 1 . 1 7 6 5 1 . 3 9 3 5 5 Device 41 | 1 1 . . . 5 5 1 . 1 4 3 4 1 . 2 5 3 2 3 Storage 8 | 1 1 . . . 1 . . . . . . . . . . 3 . 1 1 Processor 6 | . . . . . . 1 . . . . 2 . . . 1 1 . . 1 Hackware . | . . . . . . . . . . . . . . . . . . . . Protection 17 | . 1 1 . 1 5 2 . . . 3 1 1 . . . . . 2 . Artifact . | . . . . . . . . . . . . . . . . . . . . Weapon 53 | 2 5 . 1 . 9 5 . 1 1 6 . 3 1 2 1 9 3 2 2 Energy Gun 20 | . . . . . 6 . . . . . . 3 1 . . 6 1 1 2 Energy Cannon 15 | . . . . . . 3 . 1 1 4 . . . . 1 3 2 . . Ballistic Gun 10 | 2 3 . . . 1 . . . . 2 . . . 2 . . . . . Ballistic Cannon . | . . . . . . . . . . . . . . . . . . . . Launcher 2 | . . . . . 1 1 . . . . . . . . . . . . . Special Weapon 3 | . 2 . . . . . . . . . . . . . . . . 1 . Impact Weapon . | . . . . . . . . . . . . . . . . . . . . Slashing Weapon 1 | . . . . . 1 . . . . . . . . . . . . . . Piercing Weapon . | . . . . . . . . . . . . . . . . . . . . Special Melee Weapon 2 | . . . 1 . . 1 . . . . . . . . . . . . . Unidentified Prototypes 19 | . 1 . . . 2 . . . 1 6 1 . . . . 1 . 1 6 Corrupted Parts 2 | . . . . . . . . . . 2 . . . . . . . . . System Corruption 4 | . . . . . . . . . . 4 . . . . . . . . . Parts Lost 54 | . . . . . 1 2 . . . 1 6 1 5 . 2 15 1 14 6 Power 11 | . . . . . . 1 . . . . 2 1 . . . 4 . 2 1 Propulsion 14 | . . . . . 1 . . . . 1 3 . 2 . 1 1 1 3 1 Utility 14 | . . . . . . 1 . . . . 1 . 1 . 1 3 . 6 1 Weapon 15 | . . . . . . . . . . . . . 2 . . 7 . 3 3 Highest Loss Streak 14 | . . . . . 1 2 . . . 1 4 1 3 . 1 4 1 14 4 To Critical Strikes . | . . . . . . . . . . . . . . . . . . . . Average Backups 18 | 3 14 20 19 19 19 19 18 16 18 19 19 19 19 20 18 19 24 17 19 Power . | . . 1 . . . . . . . . . . . 1 1 . . . . Propulsion 1 | 2 4 2 2 1 1 1 1 1 1 . . . . 1 . 1 1 . . Utility 10 | . 4 10 10 11 10 10 9 8 12 9 8 9 8 9 9 11 16 10 12 Weapon 6 | 1 4 6 6 6 5 5 7 5 4 8 8 8 8 8 6 6 5 5 6 Tool/Special . | . . . . . . . . . . . . . . . . . . . . Unused Backups 42 | . 5 1 1 2 6 6 . 1 2 3 . . 1 . . 1 . . 13 Power 1 | . . . 1 . . . . . . . . . . . . . . . . Propulsion 9 | . 3 . . 2 . 3 . . . 1 . . . . . . . . . Utility 22 | . 2 . . . 4 1 . . 2 1 . . . . . . . . 12 Weapon 8 | . . 1 . . 1 2 . 1 . 1 . . . . . 1 . . 1 Tool/Special 2 | . . . . . 1 . . . . . . . 1 . . . . . . Average Slot Usage (%) 87 | . 99 100 100 100 99 99 100 98 100 97 89 92 85 66 68 84 92 56 71 Engine 7 | . 14 14 14 14 9 6 7 6 7 6 3 6 6 6 6 3 9 4 8 Reactor 1 | . . . . . . . . . . . 2 4 6 6 6 3 . . . Treads 1 | . 5 22 . . . . . . . . . . . . . . . . . Leg 1 | . . . . . . . . . . . . . . . 1 2 . 4 7 Wheel 14 | . 22 5 28 28 18 23 23 23 23 21 17 20 15 6 4 10 21 . . Device 15 | . 12 4 . . 17 15 16 19 17 14 12 16 12 13 19 19 22 16 16 Storage 8 | . 14 14 14 14 9 7 7 7 7 7 6 6 6 6 6 8 5 9 11 Processor 7 | . . . . . . 6 7 7 7 7 8 13 13 13 13 11 11 11 11 Protection 7 | . 1 9 14 14 17 13 13 10 12 14 10 2 6 6 . . . . . Energy Gun 3 | . . . . . 12 13 . . . . . 9 16 6 . 8 . . . Energy Cannon 8 | . . . . . . 7 21 13 18 22 18 9 . . 4 10 17 4 4 Ballistic Gun 4 | . 24 28 19 28 12 . . . . . . . . . 3 1 . . . Peak Build Rating 138 | 7 14 15 16 17 35 47 44 44 49 55 73 74 72 71 78 97 90 86 138 Average Rating 48 | 5 12 14 14 16 28 36 40 41 42 47 61 68 66 57 63 79 82 57 74 On Entrance 43 | . 7 14 15 16 17 27 40 44 43 41 51 63 70 57 71 72 73 84 61 Naked Turns . | . . . . . . . . . . . . . . . . . . . . Heaviest Build 149 | 13 58 56 56 58 78 95 86 86 86 92 102 105 104 95 95 149 144 130 122 Greatest Support 85 | 32 40 40 32 32 32 48 48 48 48 48 64 48 48 16 28 64 64 48 85 Greatest Overweight (x) 8 | . 2 3 1 1 4 1 1 1 1 2 6 2 5 5 5 8 2 4 4 Average Overweight (x) 1 | . . 1 1 1 2 1 1 1 1 1 1 1 1 5 3 3 2 3 2 Largest Inventory Capacity 25 | 8 20 20 20 20 20 20 20 20 20 20 20 20 20 20 20 25 25 25 25 Average Capacity 21 | 7 17 20 20 20 20 20 20 20 20 20 20 20 20 20 20 24 25 25 25 Most Carried 25 | 5 20 20 20 20 20 20 20 20 20 20 20 20 20 20 20 25 25 25 25 Average Carried 19 | 3 14 19 19 19 19 19 19 17 19 19 19 19 19 19 18 19 24 17 21 Final Capacity 25 | 8 20 20 20 20 20 20 20 20 20 20 20 20 20 20 20 25 25 25 25 Final Carried 25 | 5 20 20 20 20 20 19 19 17 20 20 20 20 20 17 18 25 25 21 23 Class Distribution -------------------- 32% | Mutant 26% | Tank 13% | Messiah-Mutant 7% | Scavenger-Skirmisher 5% | Skirmisher 3% | Scavenger-Mutant 3% | Messiah-Skirmisher 3% | Scavenger-Tank Dominant Class ---------------- Mutant | -10/Materials Mutant | -10/Mines Mutant | -10/Exiles Mutant | -9/Mines Tank | -8/Materials Tank | -7/Factory Tank | -7/Lower Caves Mutant | -7/Lower Caves Mutant | -7/Zion Tank | -6/Proximity Caves Tank | -6/Factory Scavenger-Skirmisher | -6/Lower Caves Scavenger-Tank | -6/Lower Caves Scavenger-Mutant | -6/Data Miner Mutant | -5/Proximity Caves Messiah-Skirmisher | -5/Factory Scavenger-Skirmisher | -5/Upper Caves Messiah-Mutant | -5/Upper Caves Messiah-Mutant | -5/Warlord Resources | -11 -10 -10 -10 -9 -8 -7 -7 -7 -7 -6 -6 -6 -6 -6 -5 -5 -5 -5 -5 ----------- Run | Yrd Mat Min Exi Min Mat Fac Low Low Zio Pro Fac Low Low Dat Pro Fac Upp Upp War Matter Collected 5595 | 332 302 314 10 108 765 609 63 243 65 285 568 212 123 . 382 884 75 80 175 Remotely . | . . . . . . . . . . . . . . . . . . . . Salvage Created 7301 | 136 327 490 . 232 816 837 27 87 . 361 1165 62 278 . 276 1722 105 248 132 Parts 330 | 14 23 23 . 9 56 37 6 10 . 11 29 6 7 . 16 63 5 12 3 Haulers Intercepted 8 | . 2 . . . 4 1 . . . . 1 . . . . . . . . Recyclers Shooed 9 | . . 3 . 1 1 2 . . . . 2 . . . . . . . . Parts Field Recycled . | . . . . . . . . . . . . . . . . . . . . Retrieved Matter . | . . . . . . . . . . . . . . . . . . . . Parts Self-Destructed 100 | . . . . . . . 6 9 . 16 . 16 22 . 12 . 4 15 . Prevented 13 | . . . . . . . . . . 6 . 2 . . 4 . . 1 . Kills | -11 -10 -10 -10 -9 -8 -7 -7 -7 -7 -6 -6 -6 -6 -6 -5 -5 -5 -5 -5 ------- Run | Yrd Mat Min Exi Min Mat Fac Low Low Zio Pro Fac Low Low Dat Pro Fac Upp Upp War Combat Hostiles Destroyed 109 | . 6 7 . . 12 13 4 2 . 4 9 4 7 . 8 21 2 6 4 Melee 4 | . . . . . 2 . . . . . 2 . . . . . . . . Guns 51 | . 6 7 . . 10 6 . . . . . . 2 . 5 9 . 4 2 Cannons 32 | . . . . . . 5 . 2 . 4 7 . . . 2 9 2 1 . AOE 14 | . . . . . . 2 4 . . . . 4 3 . . . . . 1 Classes Destroyed 19 | 3 4 . . . 2 2 . 1 . . 1 . . . 1 3 . 1 1 Worker 11 | 1 1 3 . 1 1 3 . . . . 1 . . . . . . . . Builder 5 | . . . . . 3 . . . . . . . . . . 2 . . . Tunneler 3 | 3 . . . . . . . . . . . . . . . . . . . Hauler 8 | . 2 . . . 4 1 . . . . 1 . . . . . . . . Recycler 20 | 1 . 3 . 3 1 5 . . . . 4 . . . . 3 . . . Minesweeper 1 | . . . . . . . . 1 . . . . . . . . . . . Mechanic 1 | . . . . . . . . . . . . . . . . 1 . . . Operator 1 | . . . . . . 1 . . . . . . . . . . . . . Drone 2 | . . . . . . . . . . . . . . . 2 . . . . Watcher 8 | . 3 . . . 4 . . . . . 1 . . . . . . . . Swarmer 32 | . 3 3 . . 4 3 4 . . 2 1 3 1 . 4 . . 3 1 Grunt 40 | . 3 4 . . 4 5 . 1 . 2 4 1 5 . . 9 . 2 . Brawler 1 | . . . . . . . . . . . . . . . . 1 . . . Duelist 1 | . . . . . . . . . . . . . . . . . . 1 . Sentry 11 | . . . . . 4 2 . . . . 2 . 1 . 1 1 . . . Hunter 5 | . . . . . . . . . . . 1 . . . . 2 . . 2 Programmer 16 | . . . . . . 3 . 1 . . 1 . . . 1 8 2 . . Executioner 1 | . . . . . . . . . . . . . . . . . . . 1 Z-Light 1 | . . . . . . . . . . . . . . . . 1 . . . Best Kill Streak 6 | 4 2 2 . 2 4 5 4 1 . 2 4 4 3 . 4 6 2 4 4 Combat Bots Only 4 | . 2 2 . . 3 3 4 1 . 2 4 4 3 . 4 3 2 4 4 Max Kills in Single Turn 3 | 1 1 1 . 1 2 2 3 1 . 1 1 2 2 . 2 1 1 1 1 Gunslinging . | . . . . . . . . . . . . . . . . . . . . Exploded 3 | . . . . . . 1 3 . . . . 2 2 . . . . . 1 Melee 1 | . . . . . 1 . . . . . 1 . . . . . . . . Uniques/NPCs Destroyed . | . . . . . . . . . . . . . . . . . . . . Combat | -11 -10 -10 -10 -9 -8 -7 -7 -7 -7 -6 -6 -6 -6 -6 -5 -5 -5 -5 -5 -------- Run | Yrd Mat Min Exi Min Mat Fac Low Low Zio Pro Fac Low Low Dat Pro Fac Upp Upp War Hostile Shots Fired 914 | . 35 26 . . 40 80 4 14 . 28 160 11 75 . 33 136 8 135 129 Missed 280 | . 6 10 . . 13 24 2 4 . 10 46 3 24 . 14 34 1 30 59 Hits 634 | . 29 16 . . 27 56 2 10 . 18 114 8 51 . 19 102 7 105 70 Melee 16 | . . . . . . . . 7 . . . . 3 . . . . 2 4 Projectile 618 | . 29 16 . . 27 56 2 3 . 18 114 8 48 . 19 102 7 103 66 AOE 1 | . . . . . . . . . . . . . . . . 1 . . . Critical Strikes 16 | . 1 . . . . . . . . . 2 1 3 . 1 6 . . 2 Damage Taken 10301 | . 366 180 . . 397 1042 38 65 . 291 1310 210 721 . 375 2111 141 1782 1272 Core 1586 | . 51 37 . . 15 118 . . . 6 217 . 84 . 56 348 60 385 209 Absorbed by Shields 419 | . . . . . . 20 . . . . 211 . . . . 188 . . . Redirected to Shielding 255 | . . . . . . . . . . . . . . . . . . 255 . Regen/Repaired (Parts) 579 | . 175 . . . 85 80 . . . . 46 . . . . . . . 193 Core Remaining (%) 80 | 100 . . . 64 97 . . . . 82 . . . . 58 . . . . Volleys Fired 484 | 26 45 31 . 13 41 40 6 4 . 14 38 10 29 . 25 94 8 49 11 Largest 4 | 2 2 2 . 2 3 3 3 3 . 3 3 3 3 . 3 4 3 3 3 Hottest 390 | 40 100 46 . 46 195 240 240 240 . 240 265 255 255 . 90 390 300 300 120 Shots Fired 1076 | 52 82 57 . 26 123 107 8 7 1 38 100 18 63 . 57 228 16 68 25 Gun 668 | 52 75 57 . 26 123 51 . . . . . 12 53 . 45 141 . 11 22 Cannon 383 | . . . . . . 54 5 7 1 38 100 . 6 . 12 87 16 57 . Launcher 15 | . . . . . . 2 3 . . . . 6 4 . . . . . . Special 10 | . 7 . . . . . . . . . . . . . . . . . 3 Kinetic 382 | 52 75 57 . 26 96 . . . . . . . . . 45 31 . . . Thermal 642 | . 7 . . . 27 105 5 7 1 38 100 12 59 . . 197 16 68 . Explosive 15 | . . . . . . 2 3 . . . . 6 4 . . . . . . Electromagnetic 12 | . . . . . . . . . . . . . . . 12 . . . . Entropic 22 | . . . . . . . . . . . . . . . . . . . 22 Robot Hit Streak 22 | 12 22 9 . 4 22 12 . 10 . 6 15 2 9 . 4 11 4 8 7 Robot Miss Streak 7 | 3 3 2 . 4 3 6 . 1 . 2 4 . 4 . 7 4 2 2 5 Penetration Max 1 | . . . . . . . . . . . . . . . 1 . . . . Secondary Targets 5 | . 1 1 . . . . . . . . . . 1 . . 2 . . . Max Gunslinging Chain 1 | . 1 1 . . . . . . . . . . 1 . . 1 . . . Shots Hit Robots 648 | 33 55 35 5 12 94 71 . 5 . 25 64 1 35 . 25 123 6 30 29 Core Hits 352 | 10 15 18 . 5 64 78 5 4 . 10 27 22 21 . 10 44 2 8 9 Critical Kills 4 | . . 1 . . . . . . . . . . . . . 1 . 2 . Critical Parts Destroyed 6 | . . . . . . . . . . . . . . . 3 1 . 1 1 Critical Strikes 15 | . . 1 . . . . . . . . . . 3 . 3 4 . 3 1 Burn 5 | . . . . . . . . . . . . . 3 . . 2 . . . Meltdown 2 | . . . . . . . . . . . . . . . . 1 . 1 . Destroy 7 | . . 1 . . . . . . . . . . . . 3 1 . 2 . Detonate 1 | . . . . . . . . . . . . . . . . . . . 1 Melee Attacks 72 | . . . 5 . 17 8 3 5 . 5 20 . . . . 1 . . 8 Impact . | . . . . . . . . . . . . . . . . . . . . Slashing 51 | . . . . . 17 8 3 5 . 2 16 . . . . . . . . Piercing . | . . . . . . . . . . . . . . . . . . . . Sneak Attacks 24 | . . . 5 . 3 . . 1 . 2 4 . . . . 1 . . 8 Combat Hostiles . | . . . . . . . . . . . . . . . . . . . . Follow-up Attacks . | . . . . . . . . . . . . . . . . . . . . Damage Inflicted 18845 | 269 821 493 . 183 1793 2191 317 207 . 778 1834 1037 1151 . 943 4218 242 1025 1343 Guns 8298 | 269 821 493 . 183 1380 675 . . . . . . 583 . 723 1992 . 162 1017 Cannons 6221 | . . . . . . 685 . 108 . 624 1524 . . . 220 1955 242 863 . Explosions 3350 | . . . . . . 831 317 . . . . 1037 568 . . 271 . . 326 Melee 976 | . . . . . 413 . . 99 . 154 310 . . . . . . . . Ramming . | . . . . . . . . . . . . . . . . . . . . Kinetic 4059 | 269 821 493 . 183 973 . . . . . . . . . 723 597 . . . Thermal 10468 | . . . . . 407 2008 . 108 . 624 1524 . 583 . . 3621 242 1025 326 Explosive 2105 | . . . . . . 183 317 . . . . 1037 568 . . . . . . Electromagnetic 220 | . . . . . . . . . . . . . . . 220 . . . . Impact . | . . . . . . . . . . . . . . . . . . . . Slashing 976 | . . . . . 413 . . 99 . 154 310 . . . . . . . . Piercing . | . . . . . . . . . . . . . . . . . . . . Entropic 1017 | . . . . . . . . . . . . . . . . . . . 1017 Highest Corruption 6 | . . . . . . 5 5 2 2 4 2 2 . . 6 3 3 . . Average Corruption 2 | . . . . . . 2 2 2 2 3 1 1 . . 5 1 2 . . Corruption Purged 12 | . . . . . . . 3 . . . . 3 . . . 2 4 . . Corruption Blocked . | . . . . . . . . . . . . . . . . . . . . Effects 99 | . . . . . . 14 8 8 2 . 8 2 . . 33 22 2 . . Message Errors 21 | . . . . . . 2 1 3 . . 2 . . . 5 8 . . . Matter Fused 21 | . . . . . . 1 3 4 . . 3 . . . 8 2 . . . Heat Flow Errors 18 | . . . . . . 3 . . 1 . 1 . . . 7 5 1 . . Energy Discharges 13 | . . . . . . 3 2 . . . 1 . . . 7 . . . . Parts Rejected 3 | . . . . . . 1 . . . . . . . . 1 1 . . . Parts Fused 1 | . . . . . . . . . . . . . . . . 1 . . . Data Loss (minor) 7 | . . . . . . 3 1 1 . . . . . . 1 1 . . . Data Loss (major) 7 | . . . . . . 1 1 . . . . 1 . . 2 1 1 . . Misfires 5 | . . . . . . . . . 1 . . . . . 2 2 . . . Alerts 3 | . . . . . . . . . . . 1 1 . . . 1 . . . Overload Shots . | . . . . . . . . . . . . . . . . . . . . Overflow Damage 566 | . . . . . 67 109 27 . . 81 22 55 10 . . 143 21 31 . Projectiles 183 | . . . . . . . . . . 32 22 . . . . 77 21 31 . Explosions 267 | . . . . . . 109 27 . . . . 55 10 . . 66 . . . Melee 116 | . . . . . 67 . . . . 49 . . . . . . . . . Knockbacks . | . . . . . . . . . . . . . . . . . . . . Impact . | . . . . . . . . . . . . . . . . . . . . Kinetic . | . . . . . . . . . . . . . . . . . . . . Secondary . | . . . . . . . . . . . . . . . . . . . . Self-Inflicted Damage 152 | . . . . . . . . . . . . 62 26 . . 64 . . . Shots 4 | . . . . . . . . . . . . 1 2 . . 1 . . . Rammed . | . . . . . . . . . . . . . . . . . . . . Targets Rammed . | . . . . . . . . . . . . . . . . . . . . Kicked . | . . . . . . . . . . . . . . . . . . . . Crushed . | . . . . . . . . . . . . . . . . . . . . Highest Temperature 642 | . 466 39 . . 258 481 111 87 173 465 479 201 414 . 214 642 198 196 24 Average Temperature 120 | . 92 24 . . 55 112 63 38 105 141 135 86 131 . 98 183 88 104 9 Received Heat Transfer 1769 | . 174 66 . . 162 111 9 18 . 33 202 36 249 . . 331 . 297 81 Effects 29 | . 1 . . . 3 2 . . . . . . 4 . . 19 . . . Shutdowns 4 | . 1 . . . . 1 . . . . . . 1 . . 1 . . . Energy Bleed 3 | . . . . . . 1 . . . . . . . . . 2 . . . Interference 8 | . . . . . 3 . . . . . . . 3 . . 2 . . . Matter Decay 1 | . . . . . . . . . . . . . . . . 1 . . . Damage (major) 12 | . . . . . . . . . . . . . . . . 12 . . . Damage (core) 1 | . . . . . . . . . . . . . . . . 1 . . . Siege Activations . | . . . . . . . . . . . . . . . . . . . . Martial Activations . | . . . . . . . . . . . . . . . . . . . . Shielding Activations . | . . . . . . . . . . . . . . . . . . . . Robots Disrupted . | . . . . . . . . . . . . . . . . . . . . Combat Hostiles . | . . . . . . . . . . . . . . . . . . . . Robots Corrupted 1 | . . . . . . . . . . . . . . . 1 . . . . Combat Hostiles 1 | . . . . . . . . . . . . . . . 1 . . . . Parts Fried 1 | . . . . . . . . . . . . . . . 1 . . . . Impact Corruptions . | . . . . . . . . . . . . . . . . . . . . Robots Melted 6 | . . . . . . . . . . . . . 2 . . 3 . 1 . Combat Hostiles 6 | . . . . . . . . . . . . . 2 . . 3 . 1 . Parts Melted 38 | . . . . . 1 5 . . . . 12 . 2 . . 14 . 4 . Heat Transferred 15646 | . . . . . 505 2675 . 200 . 1200 2861 . 1811 . . 4862 222 1110 200 Parts Sabotaged . | . . . . . . . . . . . . . . . . . . . . Parts Stolen 6 | . . . . . . . . 4 . . . . 2 . . . . . . Parts Stripped . | . . . . . . . . . . . . . . . . . . . . Power Chain Reactions . | . . . . . . . . . . . . . . . . . . . . Alert | -11 -10 -10 -10 -9 -8 -7 -7 -7 -7 -6 -6 -6 -6 -6 -5 -5 -5 -5 -5 ------- Run | Yrd Mat Min Exi Min Mat Fac Low Low Zio Pro Fac Low Low Dat Pro Fac Upp Upp War Maximum Alert Level 3 | . . . . . . 2 . . . . 1 . . . . 3 . . . Low Security (%) 73 | 100 100 100 . 100 100 74 . . . . 73 . . . . . . . . Level 1 5 | . . . . . . 9 . . . . 26 . . . . . . . . Level 2 9 | . . . . . . 15 . . . . . . . . . 36 . . . Level 3 10 | . . . . . . . . . . . . . . . . 63 . . . Level 4 . | . . . . . . . . . . . . . . . . . . . . Level 5 . | . . . . . . . . . . . . . . . . . . . . High Security . | . . . . . . . . . . . . . . . . . . . . Max Security . | . . . . . . . . . . . . . . . . . . . . Peak Influence 915 | 10 107 55 . 5 105 654 . . . . 319 . . . . 915 . . . Initial 667 | . . . . . . 7 . . . . 56 . . . . 667 . . . Average 179 | 1 20 14 . . 48 137 . . . . 90 . . . . 730 . . . Influence Increases 6450 | 25 260 225 . 20 498 986 90 55 . 313 633 650 394 . 200 1796 50 140 115 Destroy 0b10 Robot/C 2880 | . 120 140 . . 240 260 80 40 . 180 240 360 300 . 120 540 40 120 100 Destroy 0b10 Robot/NC 345 | 25 30 30 . 20 65 50 . 5 . 10 65 . . . 10 35 . . . Destroy Leader 546 | . 40 30 . . 66 82 10 10 . 30 76 20 20 . 10 122 10 20 . Allied During Kill 494 | . . . . . . . . . . 63 38 270 74 . . 49 . . . Trap Triggered on 0b10 30 | . . . . . . 30 . . . . . . . . . . . . . Successful Hack 106 | . 18 10 . . 10 64 . . . . 4 . . . . . . . . Disable Machine 615 | . . . . . 15 300 . . . . 150 . . . . 150 . . . Anti-Garrison Action 150 | . . . . . . 150 . . . . . . . . . . . . . Destroy Structure 324 | . 7 . . . 12 35 . . . . 60 . . . . 210 . . . Advance Influence 600 | . . . . . . . . . . . . . . . . 600 . . . Partial Spotted 15 | . 15 . . . . . . . . . . . . . . . . . . Lose Combat Pursuer 345 | . 30 15 . . 90 15 . . . 30 . . . . 60 90 . . 15 Influence Decreases 6408 | 25 260 204 21 20 481 376 519 253 . 224 455 364 626 321 92 1014 562 518 73 Entered New Map 1305 | . . . 21 . . 10 233 38 . . 33 100 106 321 . 41 330 72 . Time Decay 4165 | 25 260 204 . 20 461 346 286 215 . 194 352 214 410 . 77 553 222 306 20 Search Patrol Dispatched 150 | . . . . . . . . . . . . . . . . 150 . . . Lost Part 503 | . . . . . 10 20 . . . 10 60 10 50 . 10 150 10 140 33 Lost Ally 285 | . . . . . 10 . . . . 20 10 40 60 . 5 120 . . 20 Squads Dispatched 27 | . 1 . . . 1 12 . . . . 4 . . . . 9 . . . Investigation 3 | . . . . . 1 2 . . . . . . . . . . . . . Extermination 8 | . . . . . . 3 . . . . 2 . . . . 3 . . . Reinforcement 9 | . 1 . . . . 3 . . . . 2 . . . . 3 . . . Assault 7 | . . . . . . 4 . . . . . . . . . 3 . . . Garrison . | . . . . . . . . . . . . . . . . . . . . Intercept . | . . . . . . . . . . . . . . . . . . . . Searches Triggered 1 | . . . . . . . . . . . . . . . . 1 . . . Data Miner Redirects 1 | . . . . . . . . . . . . . . . . 1 . . . Construction Impeded 6 | . . . . . . 1 . . . . 2 . . . . 3 . . . Haulers Reinforced 1 | . . . . . . 1 . . . . . . . . . . . . . Active Scanning Responses . | . . . . . . . . . . . . . . . . . . . . Cargo Convoy Interrupts . | . . . . . . . . . . . . . . . . . . . . Stealth | -11 -10 -10 -10 -9 -8 -7 -7 -7 -7 -6 -6 -6 -6 -6 -5 -5 -5 -5 -5 --------- Run | Yrd Mat Min Exi Min Mat Fac Low Low Zio Pro Fac Low Low Dat Pro Fac Upp Upp War Distress Signals 6 | . 2 . . . 2 . . . . . . . . . . . . . 2 Communications Jammed . | . . . . . . . . . . . . . . . . . . . . Distress Signals . | . . . . . . . . . . . . . . . . . . . . Times Spotted 197 | . 16 7 . . 20 15 3 6 . 10 17 13 18 . 13 34 2 8 15 Peak Tracking Total 10 | . 3 2 . . 5 3 4 5 . 4 4 10 4 . 4 5 2 8 8 Tactical Retreats 16 | . 1 1 . . 3 1 . . . 1 . . . . 3 5 . . 1 Traps | -11 -10 -10 -10 -9 -8 -7 -7 -7 -7 -6 -6 -6 -6 -6 -5 -5 -5 -5 -5 ------- Run | Yrd Mat Min Exi Min Mat Fac Low Low Zio Pro Fac Low Low Dat Pro Fac Upp Upp War Traps Triggered 8 | . 1 . . . 1 3 . . . . 2 . . . . 1 . . . Indirectly . | . . . . . . . . . . . . . . . . . . . . Trap Hack Attempts 96 | . . . . . . 96 . . . . . . . . . . . . . Triggered . | . . . . . . . . . . . . . . . . . . . . Disarmed 2 | . . . . . . 2 . . . . . . . . . . . . . Reprogrammed 9 | . . . . . . 9 . . . . . . . . . . . . . Reused 5 | . . . . . . 3 . 2 . . . . . . . . . . . Traps Extracted 10 | . . . . . . 9 . 1 . . . . . . . . . . . Installed 9 | . . . . . . 3 . 6 . . . . . . . . . . . Triggered 5 | . . . . . . 3 . 2 . . . . . . . . . . . Most Traps Carried 5 | . . . . . . 5 3 5 5 4 4 4 . . . . . . . Machines | -11 -10 -10 -10 -9 -8 -7 -7 -7 -7 -6 -6 -6 -6 -6 -5 -5 -5 -5 -5 ---------- Run | Yrd Mat Min Exi Min Mat Fac Low Low Zio Pro Fac Low Low Dat Pro Fac Upp Upp War Machines Disabled 51 | . . . . . 1 21 . . . 1 10 6 1 . . 10 . 1 . Max in Single Turn 13 | . . . . . 1 13 . . . 1 1 1 . . . 3 . 1 . Garrison Access 2 | . . . . . . 1 . . . . 1 . . . . . . . . Machines Repaired . | . . . . . . . . . . . . . . . . . . . . Machines Dismantled . | . . . . . . . . . . . . . . . . . . . . Machines Sabotaged . | . . . . . . . . . . . . . . . . . . . . Overloaded Fab Kills . | . . . . . . . . . . . . . . . . . . . . Hacking | -11 -10 -10 -10 -9 -8 -7 -7 -7 -7 -6 -6 -6 -6 -6 -5 -5 -5 -5 -5 --------- Run | Yrd Mat Min Exi Min Mat Fac Low Low Zio Pro Fac Low Low Dat Pro Fac Upp Upp War Machines Accessed 46 | . 8 1 2 . 9 11 . . 1 1 4 . . 4 . 3 1 . 1 Terminals 21 | . 7 1 . . 6 7 . . . . . . . . . . . . . Fabricators 3 | . . . . . . 1 . . . . 1 . . . . 1 . . . Repair Stations 7 | . 1 . . . 2 2 . . . . 1 . . . . 1 . . . Recycling Units . | . . . . . . . . . . . . . . . . . . . . Scanalyzers 3 | . . . . . 1 1 . . . . 1 . . . . . . . . Garrison Access 2 | . . . . . . . . . . . 1 . . . . 1 . . . Total Hacks 138 | . 31 6 5 . 23 24 . . 6 1 7 . . 29 . 4 1 . 1 Successful 88 | . 18 3 5 . 8 13 . . 6 1 3 . . 29 . . 1 . 1 Failed 49 | . 12 3 . . 15 11 . . . . 4 . . . . 4 . . . Catastrophic 6 | . . . . . 2 1 . . . . 1 . . . . 2 . . . Database Lockouts 1 | . 1 . . . . . . . . . . . . . . . . . . Manual 89 | . 20 6 1 . 4 6 . . . . 29 . . . . 20 . 2 1 Terminals 63 | . 27 6 . . 16 14 . . . . . . . . . . . . . Fabricators 5 | . . . . . . 2 . . . . 1 . . . . 2 . . . Repair Stations 17 | . 4 . . . 4 5 . . . . 3 . . . . 1 . . . Recycling Units . | . . . . . . . . . . . . . . . . . . . . Scanalyzers 8 | . . . . . 3 3 . . . . 2 . . . . . . . . Garrison Access 2 | . . . . . . . . . . . 1 . . . . 1 . . . Terminal Hacks 59 | . 8 3 5 . 1 4 . . 6 1 . . . 29 . . 1 . 1 Record 16 | . . . 4 . . . . . . 1 . . . 11 . . . . . Part Schematic 17 | . 1 . . . . . . . 6 . . . . 10 . . . . . Robot Schematic 5 | . . . . . . . . . . . . . . 5 . . . . . Robot Analysis 3 | . . 3 . . . . . . . . . . . . . . . . . Prototype ID Bank 4 | . . . . . . 1 . . . . . . . 3 . . . . . Open Door 2 | . . . . . . . . . . . . . . . . . 1 . 1 Branch Access Points 2 | . . . . . 1 1 . . . . . . . . . . . . . Terminal Index 1 | . 1 . . . . . . . . . . . . . . . . . . Locate Traps 2 | . 1 . . . . 1 . . . . . . . . . . . . . Hauler Manifests 1 | . 1 . . . . . . . . . . . . . . . . . . Registered Components 2 | . 1 . . . . 1 . . . . . . . . . . . . . Zone Layout 3 | . 3 . . . . . . . . . . . . . . . . . . Proto ID Catalog 1 | . . . 1 . . . . . . . . . . . . . . . . Fabricator Hacks 1 | . . . . . . 1 . . . . . . . . . . . . . Load Schematic 1 | . . . . . . 1 . . . . . . . . . . . . . Repair Station Hacks 14 | . 4 . . . 4 4 . . . . 2 . . . . . . . . Scan Component 7 | . 2 . . . 2 2 . . . . 1 . . . . . . . . Repair 7 | . 2 . . . 2 2 . . . . 1 . . . . . . . . Recycling Unit Hacks . | . . . . . . . . . . . . . . . . . . . . Scanalyzer 4 | . . . . . 3 1 . . . . . . . . . . . . . Insert Component 2 | . . . . . 1 1 . . . . . . . . . . . . . Analyze 2 | . . . . . 2 . . . . . . . . . . . . . . Garrison Access Hacks 1 | . . . . . . . . . . . 1 . . . . . . . . Seal Access 1 | . . . . . . . . . . . 1 . . . . . . . . Unauthorized Hacks 9 | . 6 . . . . 3 . . . . . . . . . . . . . Terminals 8 | . 6 . . . . 2 . . . . . . . . . . . . . Assimilate 2 | . 1 . . . . 1 . . . . . . . . . . . . . Botnet 6 | . 5 . . . . 1 . . . . . . . . . . . . . Fabricators 1 | . . . . . . 1 . . . . . . . . . . . . . Recompile 1 | . . . . . . 1 . . . . . . . . . . . . . Repair Stations . | . . . . . . . . . . . . . . . . . . . . Recycling Units . | . . . . . . . . . . . . . . . . . . . . Scanalyzers . | . . . . . . . . . . . . . . . . . . . . Garrison Access . | . . . . . . . . . . . . . . . . . . . . Data Cores Recovered 1 | . . . . . . . . . . . 1 . . . . . . . . Used . | . . . . . . . . . . . . . . . . . . . . Hacking Detections 28 | . 8 1 . . 7 7 . . . . 2 . . . . 3 . . . Full Trace Events 2 | . . . . . 2 . . . . . . . . . . . . . . Feedback Events . | . . . . . . . . . . . . . . . . . . . . Feedback Blocked . | . . . . . . . . . . . . . . . . . . . . Robot Schematics Acquired 5 | . . . . . . . . . . . . . . 5 . . . . . Robots Built . | . . . . . . . . . . . . . . . . . . . . Authchips . | . . . . . . . . . . . . . . . . . . . . Time . | . . . . . . . . . . . . . . . . . . . . Total Robot Build Rating . | . . . . . . . . . . . . . . . . . . . . Part Schematics Acquired 28 | . 1 . . . 1 . . . 6 . . . . 10 . 10 . . . Parts Built . | . . . . . . . . . . . . . . . . . . . . Authchips . | . . . . . . . . . . . . . . . . . . . . Time . | . . . . . . . . . . . . . . . . . . . . Total Part Build Rating . | . . . . . . . . . . . . . . . . . . . . Parts Repaired 7 | . 2 . . . 2 2 . . . . 1 . . . . . . . . Time 245 | . 83 . . . 70 48 . . . . 44 . . . . . . . . Parts Recycled . | . . . . . . . . . . . . . . . . . . . . Recycled Matter . | . . . . . . . . . . . . . . . . . . . . Retrieved Matter . | . . . . . . . . . . . . . . . . . . . . Retrieved Components . | . . . . . . . . . . . . . . . . . . . . Parts Scanalyzed 2 | . . . . . 1 1 . . . . . . . . . . . . . Part Schematics Acquired 1 | . . . . . 1 . . . . . . . . . . . . . . Parts Damaged 1 | . . . . . . 1 . . . . . . . . . . . . . Bothacking | -11 -10 -10 -10 -9 -8 -7 -7 -7 -7 -6 -6 -6 -6 -6 -5 -5 -5 -5 -5 ------------ Run | Yrd Mat Min Exi Min Mat Fac Low Low Zio Pro Fac Low Low Dat Pro Fac Upp Upp War Used RIF Installer . | . . . . . . . . . . . . . . . . . . . . Robots Hacked 11 | . . . 5 . . . . . . 2 3 . . . . 1 . . . Non-combat 3 | . . . 3 . . . . . . . . . . . . . . . . Combat 8 | . . . 2 . . . . . . 2 3 . . . . 1 . . . Robot Hacks Applied 12 | . . . 5 . . . . . . 2 4 . . . . 1 . . . parse_system 12 | . . . 5 . . . . . . 2 4 . . . . 1 . . . Relay Couplers Released 1 | . . . . . . 1 . . . . . . . . . . . . . Machine Destruction 1 | . . . . . . 1 . . . . . . . . . . . . . Fabnet Peak Effective % . | . . . . . . . . . . . . . . . . . . . . Robots Rewired 5 | . . . . . . . . . . . . . . . . . . . 5 Allies Hacked 1 | . . . . . . . . . . . 1 . . . . . . . . Hacks Repelled . | . . . . . . . . . . . . . . . . . . . . Allies | -11 -10 -10 -10 -9 -8 -7 -7 -7 -7 -6 -6 -6 -6 -6 -5 -5 -5 -5 -5 -------- Run | Yrd Mat Min Exi Min Mat Fac Low Low Zio Pro Fac Low Low Dat Pro Fac Upp Upp War Total Allies 24 | . 1 . . . . 1 . . 4 . 6 . . . . 7 . . 5 Largest Group 5 | . 1 1 1 1 1 1 . . 4 4 5 5 3 . . 4 . . 5 Highest-Rated Group 394 | . 10 10 10 10 10 10 . . 154 154 394 394 266 . . 210 . . 253 Highest-Rated Ally 96 | . 10 10 10 10 10 10 . . 40 40 96 96 96 . . 70 . . 64 Zionite Dispatches 5 | . . . . . . . . . . . 3 . . . . 2 . . . Heavy 1 | . . . . . . . . . . . 1 . . . . . . . . Light 1 | . . . . . . . . . . . . . . . . 1 . . . Fire 1 | . . . . . . . . . . . . . . . . 1 . . . Demo 1 | . . . . . . . . . . . 1 . . . . . . . . Infowar Resupply 1 | . . . . . . . . . . . 1 . . . . . . . . Total Orders 31 | . . . 2 . . . . . . . 1 . 5 . 17 . . . 6 STAY 7 | . . . 1 . . . . . . . . . . . 2 . . . 4 ROAM 4 | . . . . . . . . . . . . . 1 . 3 . . . . FOLLOW 3 | . . . 1 . . . . . . . . . 1 . 1 . . . . AID 2 | . . . . . . . . . . . . . . . . . . . 2 DROP 1 | . . . . . . . . . . . 1 . . . . . . . . EXPLORE 7 | . . . . . . . . . . . . . 1 . 6 . . . . RETURN 7 | . . . . . . . . . . . . . 2 . 5 . . . . Ally Attacks 178 | . . . . . . . . . . 33 12 31 30 . . 64 . . 8 Total Damage 6387 | . . . . . . . . . . 849 1193 1640 1240 . . 1212 . . 253 Kills 44 | . . . . . . . . . . 5 9 14 8 . . 7 . . 1 Allies Corrupted 2 | . . . . . . . . . . . 1 . . . . . . . 1 Allies Melted 2 | . . . . . . . . . . . . . . . . . . . 2 Turrets Deployed 1 | . . . 1 . . . . . . . . . . . . . . . . Intel | -11 -10 -10 -10 -9 -8 -7 -7 -7 -7 -6 -6 -6 -6 -6 -5 -5 -5 -5 -5 ------- Run | Yrd Mat Min Exi Min Mat Fac Low Low Zio Pro Fac Low Low Dat Pro Fac Upp Upp War Active Infowar (turns) 20103 | 48 1072 280 . . 1597 1691 639 790 2272 1158 1102 444 977 139 1286 1604 469 2298 2237 Optics 9997 | . . . . . . . . . . . 543 444 977 139 1286 1604 469 2298 2237 Sensors 14399 | . . . . . . 1688 639 790 2272 1158 1102 444 117 . . 1427 469 2242 2051 Seismic 4535 | 48 1072 280 . . 1597 577 . . . . . . . . 426 535 . . . Jamming 4872 | . . . . . . . . . . . 1 . . . 2 405 . 2229 2235 Robot Analysis Total 3 | . . 3 . . . . . . . . . . . . . . . . . Derelict Logs Recovered 14 | . . 3 . 2 . . 1 1 1 1 . . 2 . 1 . 1 1 . Drone Launches 8 | . . . . . . . . . . . . . 2 . 6 . . . . Drone Recoveries 6 | . . . . . . . . . . . . . 2 . 4 . . . . Zionite Intel Received 7 | . . . . . . . . . . . 4 . . . . 3 . . . Branch Access 2 | . . . . . . . . . . . 1 . . . . 1 . . . Emergency Access 1 | . . . . . . . . . . . 1 . . . . . . . . Guard Positions 1 | . . . . . . . . . . . 1 . . . . . . . . Component Stockpiles 1 | . . . . . . . . . . . . . . . . 1 . . . Prototype Schematics 1 | . . . . . . . . . . . . . . . . 1 . . . Active Terminals 1 | . . . . . . . . . . . 1 . . . . . . . . Exploration | -11 -10 -10 -10 -9 -8 -7 -7 -7 -7 -6 -6 -6 -6 -6 -5 -5 -5 -5 -5 ------------- Run | Yrd Mat Min Exi Min Mat Fac Low Low Zio Pro Fac Low Low Dat Pro Fac Upp Upp War Turns Passed 22716 | 135 1212 892 659 568 1706 1871 639 790 2272 1208 1297 444 990 139 1286 1604 469 2298 2237 Spaces Moved 11368 | 56 748 392 511 449 809 1064 398 635 1170 783 719 295 675 78 508 781 329 427 541 Core 1 | 1 . . . . . . . . . . . . . . . . . . . Treads 364 | . 92 272 . . . . . . . . . . . . . . . . . Legs 1060 | . . . . . . . . . . . . . . . 93 2 . 424 541 Wheels 9943 | 55 656 120 511 449 809 1064 398 635 1170 783 719 295 675 78 415 779 329 3 . Hover . | . . . . . . . . . . . . . . . . . . . . Flight . | . . . . . . . . . . . . . . . . . . . . Fastest Speed 50 | 50 90 115 115 115 130 115 115 115 115 115 115 115 115 175 130 115 130 130 170 Average Speed 156 | 92 121 201 115 115 130 115 115 115 115 118 121 116 129 175 197 153 130 507 396 Slowest Speed 610 | 100 240 240 115 115 160 115 115 115 115 130 190 130 175 175 410 610 130 510 510 Overloaded Moves . | . . . . . . . . . . . . . . . . . . . . Propulsion Burnouts . | . . . . . . . . . . . . . . . . . . . . Robots Hopped 1 | . . . 1 . . . . . . . . . . . . . . . . Potential Cave-ins 2 | . . . . . . 2 . . . . . . . . . . . . . Cave-ins Triggered 1 | . . . . . . 1 . . . . . . . . . . . . . Exploration Rate (%) 61 | 4 89 88 66 92 63 23 62 75 90 72 19 44 76 73 79 22 52 59 84 Regions Visited 19 Branch Regions 14 Pre-discovered Areas 6 | . . 1 1 1 . . . . 1 . . . . 1 1 . . . . Known Exits Taken 14 | . . . . . 1 1 1 1 1 1 1 1 1 1 1 1 1 1 . Unknown Exits Taken 5 | 1 1 1 1 1 . . . . . . . . . . . . . . . Scrap Searched 30 | . . 1 . 2 . . 2 2 5 3 . 2 4 . 5 . 2 2 . Spaces Dug 82 | . 5 . . . 10 9 16 4 . . 14 . 4 . . 12 1 7 . Terrain Destroyed 427 | . 7 . . . 10 41 29 4 . . 17 34 50 . 58 125 10 34 8 Melee 33 | . . . . . 10 7 3 4 . . 9 . . . . . . . . Projectile 208 | . 7 . . . . 7 1 . . . 8 . 8 . 58 67 10 34 8 AOE 186 | . . . . . . 27 25 . . . . 34 42 . . 58 . . . Terrain Rammed . | . . . . . . . . . . . . . . . . . . . . Walls Destroyed . | . . . . . . . . . . . . . . . . . . . . Machines Disabled . | . . . . . . . . . . . . . . . . . . . . Actions | -11 -10 -10 -10 -9 -8 -7 -7 -7 -7 -6 -6 -6 -6 -6 -5 -5 -5 -5 -5 --------- Run | Yrd Mat Min Exi Min Mat Fac Low Low Zio Pro Fac Low Low Dat Pro Fac Upp Upp War Total 15370 | 94 963 436 579 477 1362 1613 565 682 2094 1034 1037 379 739 81 746 1025 356 501 607 Wait 2665 | . 110 5 57 2 412 284 150 12 908 173 206 53 21 . 190 64 2 7 9 Move 11346 | 55 747 391 508 448 808 1062 397 634 1169 782 718 294 674 77 507 780 328 426 541 Hop 1 | . . . 1 . . . . . . . . . . . . . . . . Pick Up 148 | 4 27 1 3 5 20 22 1 3 7 11 5 1 5 . 2 20 2 4 5 Fast Attach 71 | 8 3 2 . . 1 6 . . 1 7 6 6 . . 4 19 . 1 7 Attach 69 | . . . . . 10 4 1 5 . 2 5 1 2 3 5 13 4 10 4 Detach 22 | 1 . . . . . . . 2 . 1 1 1 1 . 4 7 1 2 1 Swap 210 | . 15 2 2 3 33 44 7 8 6 19 25 6 5 . 6 13 8 1 7 Drop 146 | . 16 4 3 6 20 27 . 3 3 20 5 7 2 1 3 14 3 1 8 Fire 484 | 26 45 31 . 13 41 40 6 4 . 14 38 10 29 . 25 94 8 49 11 Melee 72 | . . . 5 . 17 8 3 5 . 5 20 . . . . 1 . . 8 Ram . | . . . . . . . . . . . . . . . . . . . . Kick . | . . . . . . . . . . . . . . . . . . . . Crush . | . . . . . . . . . . . . . . . . . . . . Escape Stasis 25 | . . . . . . 17 . . . . 8 . . . . . . . . Rewire 6 | . . . . . . . . . . . . . . . . . . . 6 Trap 105 | . . . . . . 99 . 6 . . . . . . . . . . . Miscellaneous . | . . . . . . . . . . . . . . . . . . . . Route ------- -11/Scrapyard -10/Materials (discovered 5 exits: [*Mat x3] / *Min x2) -10/Mines (discovered 3 exits: [*Mat x2] / *Exi) -10/Exiles -9/Mines (discovered 2 exits: *Mat x2) -8/Materials (discovered 2 exits: *Fac x2) -7/Factory (discovered 3 exits: *Fac / *Low x2) -7/Lower Caves -7/Lower Caves (discovered 2 exits: *Fac / *Zio) -7/Zion -6/Proximity Caves -6/Factory (discovered 3 exits: Fac / *Low x2) -6/Lower Caves -6/Lower Caves (discovered 2 exits: *Fac / *Dat) -6/Data Miner -5/Proximity Caves -5/Factory (discovered 3 exits: *Fac / *Upp x2) -5/Upper Caves -5/Upper Caves (discovered 2 exits: *Fac / *War) -5/Warlord History --------- Turn | Location | Event 15 | -11/Scrapyard | Discovered new exit (range 15) 136 | -11/Scrapyard | Entered Materials 301 | -10/Materials | Build established: Mutant 409 | -10/Materials | Discovered new exit (range 6) 436 | -10/Materials | Central database locked down 440 | -10/Materials | Discovered new exit (range 16) 478 | -10/Materials | Discovered new exit (range 17) 501 | -10/Materials | Discovered new exit (range 9) 790 | -10/Materials | Discovered new exit (range 10) 977 | -10/Materials | Repaired Imp. Assault Rifle 1009 | -10/Materials | Repaired Med. Armor Plating 1348 | -10/Materials | Entered Mines 1348 | -10/Mines | Accompanied by 1 ally 1348 | -10/Mines | Discovered new exit (range 15) 1380 | -10/Mines | Discovered new exit (range 10) 1510 | -10/Mines | Found DCF Scrap (11 items) 1536 | -10/Mines | Received a Rocket Launcher from a helpful Derelict 1598 | -10/Mines | Deemed a non-threat by the Exiles lab entrance 1690 | -10/Mines | Learned location of 1 exit from Materials 1972 | -10/Mines | Learned Materials emergency access door positions 2230 | -10/Mines | Discovered new exit (range 5) 2240 | -10/Mines | Entered Exiles 2240 | -10/Exiles | Accompanied by 1 ally 2269 | -10/Exiles | Met 8R-AWN 2285 | -10/Exiles | Met EX-HEX 2322 | -10/Exiles | Met EX-BIN 2436 | -10/Exiles | Aligned with FarCom system 2437 | -10/Exiles | Given EX-Vault access code 2463 | -10/Exiles | Opened EX-Vault 2472 | -10/Exiles | Found Deploy-a-Sentry 2475 | -10/Exiles | DAS Turret deployed 2484 | -10/Exiles | Found PSU Rigger 2488 | -10/Exiles | Found Longsword +1 2533 | -10/Exiles | Warned to stay clear of 0b10 Research branches 2567 | -10/Exiles | Met EX-DEC 2590 | -10/Exiles | Learned location of Zion (-7) 2650 | -10/Exiles | Discovered new exit (range 10) 2899 | -10/Exiles | Stole two prototypes: PSU Rigger, Longsword +1 2899 | -10/Exiles | Entered Mines 2899 | -9/Mines | Accompanied by 1 ally 2916 | -9/Mines | Discovered new exit (range 16) 2994 | -9/Mines | Learned Materials garrison access intel 3435 | -9/Mines | Discovered new exit (range 11) 3467 | -9/Mines | Entered Materials 3467 | -8/Materials | Accompanied by 1 ally 3467 | -8/Materials | Evolved 4 slots: Utility x3, Weapon x1 3468 | -8/Materials | Identified exit to Factory 3470 | -8/Materials | Loaded intel: 1 garrison access location 4040 | -8/Materials | Build established: Tank 4356 | -8/Materials | Discovered exit to Factory (range 5) 4682 | -8/Materials | Repaired Cooling System 4777 | -8/Materials | Repaired Hrd. Medium Armor Plating? 5173 | -8/Materials | Entered Factory 5173 | -7/Factory | Evolved 2 slots: Propulsion x1, Utility x1 5175 | -7/Factory | FarCom data flow suspended 5234 | -7/Factory | Identified exit to Lower Caves 5493 | -7/Factory | Repaired Cooling System 5687 | -7/Factory | Discovered new exit (range 12) 5700 | -7/Factory | Identified exit to Factory 5859 | -7/Factory | Repaired Spread Laser 6748 | -7/Factory | Garrison activated, responded to threat 6773 | -7/Factory | First assault squad dispatched 6788 | -7/Factory | Crushed by falling debris 7044 | -7/Factory | Entered Lower Caves 7070 | -7/Lower Caves | Encountered a Warlord checkpoint 7464 | -7/Lower Caves | Identified exit to Lower Caves 7683 | -7/Lower Caves | Entered another Lower Caves area 7792 | -7/Lower Caves | Encountered a Warlord checkpoint 7795 | -7/Lower Caves | Discovered exit to Factory (range 15) 8008 | -7/Lower Caves | Spotted A0-ZET(f) 8008 | -7/Lower Caves | Spotted G5-TC0(f) 8010 | -7/Lower Caves | Encountered a Master Thief 8010 | -7/Lower Caves | Encountered a Master Thief 8011 | -7/Lower Caves | Mic. Nuclear Core stolen by Master Thief 8012 | -7/Lower Caves | Spotted H0-GFB(f) 8013 | -7/Lower Caves | Encountered a Master Thief 8013 | -7/Lower Caves | Spotted VI-CTZ(f) 8014 | -7/Lower Caves | Encountered a Master Thief 8014 | -7/Lower Caves | Plasma Cannon stolen by Master Thief 8017 | -7/Lower Caves | Plasma Cannon stolen by Master Thief 8018 | -7/Lower Caves | Plasma Cannon stolen by Master Thief 8307 | -7/Lower Caves | Build established: Mutant 8310 | -7/Lower Caves | Learned location of 1 exit from Factory 8464 | -7/Lower Caves | Discovered new exit (range 8) 8472 | -7/Lower Caves | Identified exit to Zion 8473 | -7/Lower Caves | Entered Zion 8610 | -7/Zion | System corruption cleaned by Quarantine Array 8682 | -7/Zion | Received a visual enhancement algorithm 8738 | -7/Zion | Given A8's code to call for help 8858 | -7/Zion | Learned 8 Factory zone layouts 8945 | -7/Zion | Given the Hacking Drone Bay 8945 | -7/Zion | Found Prototype Device 8945 | -7/Zion | Identified Hacking Drone Bay 9080 | -7/Zion | Found Relay Coupler [Programmer] 9246 | -7/Zion | Acquired unknown access codes intercepted by a Zionite 9369 | -7/Zion | Met Imprinter 9391 | -7/Zion | Imprinted 9393 | -7/Zion | Declared Zion's savior 10044 | -7/Zion | Build established: Tank 10622 | -7/Zion | Discovered new exit (range 13) 10730 | -7/Zion | Identified exit to Proximity Caves 10745 | -7/Zion | Entered Proximity Caves 10745 | -6/Proximity Caves | Accompanied by 4 allies 10801 | -6/Proximity Caves | Encountered a Derelict guarding a broken Freighter 10817 | -6/Proximity Caves | Learned Factory emergency access door positions 10880 | -6/Proximity Caves | Found Prototype Device 10880 | -6/Proximity Caves | Identified Exp. Shield Generator 11516 | -6/Proximity Caves | Found Alien Artifact 11544 | -6/Proximity Caves | Spotted B-75 Beast 11908 | -6/Proximity Caves | Discovered exit to Factory (range 10) 11915 | -6/Proximity Caves | Attracted the attention of an 0b10 checkpoint 11953 | -6/Proximity Caves | Entered Factory 11953 | -6/Factory | Accompanied by 2 allies 11953 | -6/Factory | Evolved 2 slots: Power x1, Propulsion x1 11954 | -6/Factory | Identified exit to Factory 12127 | -6/Factory | Retrieved Zion intel report: Active Terminals 12138 | -6/Factory | Retrieved Zion intel report: Branch Access 12138 | -6/Factory | Identified exit to Lower Caves 12139 | -6/Factory | Repaired Plasma Cannon? 12244 | -6/Factory | Retrieved Zion intel report: Emergency Access 12603 | -6/Factory | Lost 4 parts (1p2n1u) 12698 | -6/Factory | Retrieved Zion intel report: Guard Positions 12699 | -6/Factory | Zion Infowar Resupply teleported in 12885 | -6/Factory | Zion Demo squad teleported in 13007 | -6/Factory | Enhanced Grunt warped into view, answering call for help 13008 | -6/Factory | Enhanced Grunt warped into view, answering call for help 13008 | -6/Factory | Build established: Skirmisher 13221 | -6/Factory | Zion Heavy squad teleported in 13250 | -6/Factory | Entered Lower Caves 13250 | -6/Lower Caves | Accompanied by 5 allies 13347 | -6/Lower Caves | Build established: Scavenger-Skirmisher 13369 | -6/Lower Caves | Attracted the attention of an 0b10 base 13428 | -6/Lower Caves | Found Exp. Thermal Shield 13688 | -6/Lower Caves | Discovered new exit (range 3) 13690 | -6/Lower Caves | Identified exit to Lower Caves 13694 | -6/Lower Caves | Entered another Lower Caves area 13694 | -6/Lower Caves | Accompanied by 3 allies 13694 | -6/Lower Caves | Spotted TV-M0X(f) 13694 | -6/Lower Caves | Spotted XS-AMX(f) 13695 | -6/Lower Caves | Longsword +1 stolen by Master Thief 13696 | -6/Lower Caves | Encountered a Master Thief 13696 | -6/Lower Caves | Encountered a Master Thief 13700 | -6/Lower Caves | Alien Artifact stolen by Master Thief 13730 | -6/Lower Caves | Encountered a Warlord checkpoint 13733 | -6/Lower Caves | Learned Factory machine intel 13802 | -6/Lower Caves | Attracted the attention of an 0b10 checkpoint 14122 | -6/Lower Caves | Build established: Scavenger-Tank 14192 | -6/Lower Caves | Learned Factory machine intel 14219 | -6/Lower Caves | Discovered exit to Factory (range 19) 14516 | -6/Lower Caves | Lost 3 parts (1n2w) 14664 | -6/Lower Caves | Discovered new exit (range 11) 14682 | -6/Lower Caves | Identified exit to Data Miner 14684 | -6/Lower Caves | Entered Data Miner 14684 | -6/Data Miner | Discovered new exit (range 6) 14707 | -6/Data Miner | Met Data Miner 14765 | -6/Data Miner | Learned location of Section 7 (-2) 14765 | -6/Data Miner | Acquired the access code to Warlord's prototype stash 14779 | -6/Data Miner | Build established: Scavenger-Mutant 14781 | -6/Data Miner | Received God Mode back door access code from Data Miner 14817 | -6/Data Miner | Identified exit to Proximity Caves 14823 | -6/Data Miner | Entered Proximity Caves 14826 | -5/Proximity Caves | Spotter reported a threat 14826 | -5/Proximity Caves | Spotter reported a threat 14988 | -5/Proximity Caves | Spotter reported a threat 15009 | -5/Proximity Caves | Attracted the attention of an 0b10 checkpoint 15100 | -5/Proximity Caves | Spotter reported a threat 15527 | -5/Proximity Caves | Learned location of Armory (-4) 15721 | -5/Proximity Caves | Build established: Mutant 16034 | -5/Proximity Caves | Discovered exit to Factory (range 15) 16109 | -5/Proximity Caves | Entered Factory 16109 | -5/Factory | Evolved 2 slots: Utility x1, Weapon x1 16110 | -5/Factory | Loaded intel: 329 machine locations 16252 | -5/Factory | Lost 3 parts (2p1w) 16276 | -5/Factory | Discovered new exit (range 19) 16326 | -5/Factory | Identified exit to Factory 16409 | -5/Factory | Search patrols dispatched 16452 | -5/Factory | Build established: Skirmisher 16479 | -5/Factory | Retrieved Zion intel report: Branch Access 16479 | -5/Factory | Identified exit to Upper Caves 16480 | -5/Factory | Zion Fire squad teleported in 16691 | -5/Factory | Lost 3 allies 16817 | -5/Factory | Lost 4 parts (1n1u2w) 17009 | -5/Factory | First assault squad dispatched 17027 | -5/Factory | Incoming assault squad redirected 17067 | -5/Factory | Build established: Messiah-Skirmisher 17090 | -5/Factory | Zion Light squad teleported in 17167 | -5/Factory | Found Zio. Weapon Casing 17236 | -5/Factory | Found Zio. Weapon Casing 17283 | -5/Factory | Found Zio. Weapon Casing 17371 | -5/Factory | Retrieved Zion intel report: Component Stockpiles 17642 | -5/Factory | Retrieved Zion intel report: Prototype Schematics 17707 | -5/Factory | Terminal network hard line cut 17713 | -5/Factory | Entered Upper Caves 18012 | -5/Upper Caves | Build established: Scavenger-Skirmisher 18104 | -5/Upper Caves | Learned Factory stockpile data 18178 | -5/Upper Caves | Discovered new exit (range 3) 18181 | -5/Upper Caves | Identified exit to Upper Caves 18182 | -5/Upper Caves | Entered another Upper Caves area 18197 | -5/Upper Caves | Core integrity fell below 50% 18256 | -5/Upper Caves | Lost 14 parts (2p3n6u3w) 18302 | -5/Upper Caves | Discovered exit to Factory (range 8) 18477 | -5/Upper Caves | Identified exit to Warlord 18501 | -5/Upper Caves | Build established: Mutant 19023 | -5/Upper Caves | Build established: Messiah-Mutant 20347 | -5/Upper Caves | Acquired the password to a Derelict Tinkerer's latest research 20376 | -5/Upper Caves | Found Prototype Special Weapon 20376 | -5/Upper Caves | Identified Molecular Deconstructor 20480 | -5/Upper Caves | Entered Warlord 21780 | -5/Warlord | Warlord's base attacked by MAIN.C 22128 | -5/Warlord | Rebuked by Warlord 22130 | -5/Warlord | Warlord forces counterattacked 22165 | -5/Warlord | Build established: Commander-Assassin 22281 | -5/Warlord | Opened Warlord's prototype stash 22327 | -5/Warlord | Found Prototype Hackware 22335 | -5/Warlord | Found Exp. Core Analyzer 22337 | -5/Warlord | Found Prototype Device 22337 | -5/Warlord | Identified System Purifier 22348 | -5/Warlord | Found Prototype Reactor 22409 | -5/Warlord | Found Prototype Device 22455 | -5/Warlord | Warlord base infiltrated, sounded retreat 22505 | -5/Warlord | Spotted Executioner 22507 | -5/Warlord | Core integrity fell below 20% 22527 | -5/Warlord | Found Prototype Energy Gun 22527 | -5/Warlord | Identified Vortex Shotgun 22530 | -5/Warlord | Lost 8 allies 22531 | -5/Warlord | Found Vortex Shotgun 22538 | -5/Warlord | Destroyed Executioner 22567 | -5/Warlord | Lost 4 parts (1p1n1u1w) 22654 | -5/Warlord | Spotted Executioner 22698 | -5/Warlord | Spotted Striker 22700 | -5/Warlord | Identified Vortex Chain Reactor 22717 | -5/Warlord | Destroyed by Striker with Plasma Lance Last Messages --------------- 22608_ Acquired 83 matter. 22612_ Acquired Adv. Cooling System. 22615_ Acquired 19 matter. 22655_ Penetrated by Slug. 22655_ Slug penetrates Wall. 22670_ ANNOUNCEMENT: MAIN.C reinforcements approaching through caves, arriving soon. 22680_ ANNOUNCEMENT: Detected 1 Mixed squad, 1 Demolisher squad, 1 Grunt squad, 1 Melee squad, with prototype support. 22699_ Dropped Lgt. Nuclear Core. 22700_ Dropped Backup Power III. 22700_ Identified Vortex Chain Reactor. 22702_ Knocked back. 22705_ Striker knocked back. 22711_ Molecular Deconstructor destroyed. 22713_ Destroyed Prototype Device. 22713_ Destroyed Adv. Heat Sink. 22716_ Destroyed Lgt. Quantum Reactor. 22717_ Vortex Shotgun destroyed. Map ----- +----------------------------------------------------+ | | | | | | | ?????????????????????????????????????????????????? | | ?????????????????????????????????????????????????? | | #????????????????????????????????????????????????? | | !##????######????###???#####?###?????????????????? | | ###### ###### ##### # ##""#######X#######???? | | + | | "## ^ | | "?# #### ##### ########+############?????????? | | ??# #??##"###???# #?# #?????????????????? | | ??# #???# ??????# #?# #?????????????????? | | ??# #???# ??????# ### #?????????????????? | | #?# #???#"####??# ^+ #?????????????????? | | #?# #???# #??# ### #?????????????????? | | #?# #???# #??# #?# #?????????????????? | | #?# #???# #??# ### #?????????????????? | | #?# #???# ???# ## #?????????????????? | | ###+#####"+##???# #############?????????????????? | | "# + #???# #?????????????????????????????? | | "" # ##### #????????????????????????????? | | ## # "# ## #???????##????????????????????? | | ## # # #?# ########;##???????????????????? | | ## "=*%!#### #;;;; #???????????????????? | | ## ! ![=! ! !%! @ #???????????????????? | | ## !*%[%! !!= bKx ####????????????????? | | ## !%!!= ! g ; #????????????????? | | X# #%!;###;########*g ####?#""#???????????? | | #" "" #?##g #;#???#""#???????????? | | ## ## | #??#g ;# #??#""#???????????? | | ## ## #??; g;## #?#""#???????????? | | ## ## | % #??# ; ## ##""#???????????? | | ########## [ "### #;#####""#####???????? | | #????????# "% # "" "######### | | #????????# # ; "" """""""""" | | #????????#####+#" # %* "" """""""""" | | #??????????# = =*= % | | ####???????# [%[%! ^ %% | | # ######### ! !% %%%*= =% | | %! = ==/% | | ######## =s "" """""""""" | | #??????# h # "" = """""""""" | | ######??????# = "" "######### | | ##???????????# | # #; #######""#####???????? | | #??#######??# #?????#""#???????????? | | #??? ??# " ##????#""#???????????? | | #??# """"" ?# """ #????#""#???????????? | | #??# """"" ?# """ ##????#""#???????????? | | #??# """"" # #?????""????????????? | +----------------------------------------------------+ Best States ------------- Heat Dissipation 92 Coolant Potential 80 Energy Generation 55 Energy Capacity 1300 Matter Stores 300 Matter Capacity 600 Sight Range 22 Robot Scan Range 16 Terrain Scan Density 10 Jamming Range 14 Armor Coverage 675 Resistance: TH 30 Resistance: EM 25 Evasion (%) 42 Recoil Reduction 4 Authchip Count 3 Trap Extractor Capacity 6 Item Schematics ----------------- Hcp. Storage Unit | -10/Materials | Hacked Spread Laser | -8/Materials | Scanalyzed Flamer | -7/Zion | Free Battle Cannon | -7/Zion | Free Hvy. Riot Gun | -7/Zion | Free Enh. Flamer | -7/Zion | Free Arc Thrower | -7/Zion | Free Tactical Coordination Suite | -7/Zion | Free Combat Drone Bay | -6/Data Miner | Free Lgt. Regenerative Plating | -6/Data Miner | Free Enh. Armored Leg | -6/Data Miner | Free Exp. Heat Sink | -6/Data Miner | Free Imp. Linear Gravjet | -6/Data Miner | Free Cld. Plasma Rifle | -6/Data Miner | Free Adv. Focal Shield | -6/Data Miner | Free HERF Cannon | -6/Data Miner | Free Imp. Transmission Jammer | -6/Data Miner | Free Graphene Brace | -6/Data Miner | Free Mni. Assault Cannon | -5/Factory | Z-intel Fusion Reactor | -5/Factory | Z-intel Multireflex Exoskeleton | -5/Factory | Z-intel Enh. Coil Gun | -5/Factory | Z-intel Imp. Airjet | -5/Factory | Z-intel Mni. Smartbomb Launcher | -5/Factory | Z-intel Gravity Neutralizer | -5/Factory | Z-intel Cold Fusion Reactor | -5/Factory | Z-intel Cld. Gravmag System | -5/Factory | Z-intel Imp. Heavy Machine Gun | -5/Factory | Z-intel Robot Schematics ------------------ R-10 Processor | -6/Data Miner | Free Y-54 Guardian | -6/Data Miner | Free H-66 Slayer | -6/Data Miner | Free Y-64 Sentinel | -6/Data Miner | Free S-27 Virus | -6/Data Miner | Free Fabricated ------------ Nothing Repaired ---------- Imp. Assault Rifle | 34% | -10/Materials Med. Armor Plating | 30% | -10/Materials Cooling System | 60% | -8/Materials Hrd. Medium Armor Plating | 72% | -8/Materials Cooling System | 30% | -7/Factory Spread Laser | 43% | -7/Factory Plasma Cannon | 63% | -6/Factory Alien Tech Used ----------------- None Achievements -------------- None Challenges ------------ None Game ------ Seed ExoskeletonThunderCyclogen Manual? 0 Play Time 03:05:08 Cumulative 263.4 hours Start 2025.08.26 @ 14:05:57 End 2025.08.26 @ 20:56:43 Sessions 5 Manual Loads 0 Difficulty Rogue Special Mode None Game No. 185 Rogue 185 Adventurer 0 Explorer 0 Win Type - Total 2 Types 2/0/0/0/0/0/0/0/0/0 Lore% 72 Gallery% 71 Achievement% 60 Wizard Run 0 Options --------- Layout 1 ASCII 0 Keyboard 0 Movement Mouse Keybinds 0 Fullscreen 1 Font 32/SmallcapsGlow Map View 50x35 Zoom Use 0% Tactical HUD 1 Map Filters NONE Filters NONE Steam 1 RUN: 7da89e5b-37a7-4ab7-a0a6-c4ccf8f82713